fUST/lending_fUST_20240124
["ID","MTS","AMOUNT","RATE_DAILY","PERIOD"]
[312585249,1706031033706,-52.60840928,0.00035,7]
[312585250,1706031033718,-300.0,0.00035,4]
[312585251,1706031033731,-2453.74929659,0.00035,2]
[312585252,1706031033743,-154.86062544,0.00035,4]
[312585253,1706031033756,-686.89043895,0.00035,4]
[312585254,1706031033767,-213.15876796,0.00035,4]
[312585255,1706031033779,-283.29570516,0.00035,3]
[312585256,1706031033790,-472.66473648,0.00037895,4]
[312585257,1706031033802,-2086.84800856,0.00037896,4]
[312585258,1706031033814,-1117.11167906,0.00037897,7]
[312585259,1706031033827,-1901.85425335,0.00037897,4]
[312585260,1706031033839,-592.15140102,0.00037898,2]
[312585261,1706031033851,-171.16873058,0.000379,8]
[312585262,1706031033865,-1148.58191854,0.00037986,4]
[312585263,1706031033880,-5198.88102895,0.00037986,4]
[312585264,1706031033892,-4009.19,0.0003799,3]
[312585265,1706031033904,-3340.99,0.0003799,3]
[312585266,1706031033918,-48167.57797,0.00038,10]
[312585267,1706031033931,-1177.75088536,0.00038,4]
[312585268,1706031033944,-351.52136299,0.00038,7]
[312585269,1706031033956,-5000.0,0.00038,15]
[312585270,1706031033969,-4811.02,0.00038514,3]
[312585271,1706031033981,-2140.68079018,0.00038523,4]
[312585272,1706031033994,-5773.23,0.00038524,3]
[312585273,1706031034008,-199.2396578,0.00038534,2]
[312585274,1706031034020,-153.0,0.00038534,2]
[312585275,1706031034032,-199.2396578,0.00038534,2]
[312585276,1706031034044,-195.2607503,0.00038534,2]
[312585277,1706031034056,-154.86062544,0.00038633,4]
[312585278,1706031034068,-199.2396578,0.00038634,2]
[312585279,1706031034080,-199.2396578,0.00038634,2]
[312585280,1706031034096,-3950.14907787,0.00039383,5]
[312585281,1706031034108,-585.93041795,0.00039383,5]
[312585282,1706031034120,-5771.32521674,0.0003999,4]
[312585283,1706031034133,-154.8915759,0.0004,4]
[312585284,1706031034145,-240.11023791,0.0004,4]
[312585285,1706031034157,-159.21990439,0.0004,4]
[312585286,1706031034169,-309.74341359,0.0004,4]
[312585287,1706031034182,-2880.90145288,0.0004,4]
[312585288,1706031034193,-505.03,0.0004,7]
[312585289,1706031034205,-197.0,0.0004,14]
[312585290,1706031034218,-150.98638473,0.00040192,30]
[312585291,1706031034230,-210.30235719,0.00040196,30]
[312585292,1706031034242,-150.43942455,0.00040197,30]
[312585293,1706031034255,-151.67156969,0.00040218,30]
[312585294,1706031034265,-151.45185766,0.00040261,30]
[312585295,1706031034275,-151.45185766,0.0004031,30]
[312585296,1706031034285,-210.30235719,0.00040319,30]
[312585297,1706031034294,-158.5370369,0.00040334,30]
[312585298,1706031034304,-150.10168144,0.0004036,30]
[312585299,1706031034314,-160.336079,0.00040361,2]
[312585300,1706031034471,-158.5370369,0.00040383,30]
[312585301,1706031034485,-210.30235719,0.00040413,30]
[312585302,1706031034496,-150.43942455,0.0004043,30]
[312585303,1706031034506,-150.98638473,0.0004043,30]
[312585304,1706031034515,-150.98638473,0.00040502,30]
[312585305,1706031034525,-151.67156969,0.00040555,30]
[312585306,1706031034534,-210.30235719,0.00040607,30]
[312585307,1706031034545,-210.30235719,0.00040608,30]
[312585308,1706031034554,-150.98638473,0.0004062,30]
[312585309,1706031034564,-210.30235719,0.00040648,30]
[312585310,1706031034573,-150.43942455,0.00040696,30]
[312585311,1706031034582,-150.43942455,0.00040711,30]
[312585312,1706031034592,-210.30235719,0.0004076,30]
[312585313,1706031034601,-210.30235719,0.00040786,30]
[312585314,1706031034611,-150.98638473,0.00040819,30]
[312585315,1706031034620,-150.10168144,0.00040839,30]
[312585316,1706031034630,-150.98638473,0.00040866,30]
[312585317,1706031034639,-921.20880898,0.000409,2]
[312585318,1706031034649,-210.30235719,0.00040961,30]
[312585319,1706031034658,-16919.99862839,0.00040995,5]
[312585320,1706031034668,-11301.61556397,0.00041,2]
[312585321,1706031034681,-626.18500804,0.00041,2]
[312585337,1706031038099,-166.666666,0.0002903,2]
[312585339,1706031038108,-166.666666,0.00029822,2]
[312585340,1706031038117,-166.666666,0.00030613,2]
[312585341,1706031038127,-166.666666,0.00031405,2]
[312585342,1706031038136,-166.666666,0.00032196,2]
[312585343,1706031038146,-166.666666,0.00032987,2]
[312585344,1706031038155,-154.86062544,0.00034989,5]
[312585345,1706031038166,-1026.65405285,0.00035,2]
[312585346,1706031038176,-7514.66113846,0.00041,2]
[312585347,1706031038188,-1006.66899002,0.00041,2]
[312585348,1706031038199,-3797.32315832,0.00041,2]
[312585349,1706031038208,-274.37879208,0.00041,90]
[312585350,1706031038217,-155.0,0.00041,2]
[312585351,1706031038227,-158.5370369,0.0004103,30]
[312585352,1706031038237,-150.98638473,0.00041064,30]
[312585353,1706031038246,-1744.43311062,0.00041093,4]
[312585354,1706031038256,-2059.64630298,0.00041093,4]
[312585355,1706031038266,-154.89063238,0.00041093,4]
[312585356,1706031038275,-309.9690031,0.00041093,4]
[312585357,1706031038285,-440.74121936,0.00041093,4]
[312585358,1706031038294,-2022.65166079,0.00041093,4]
[312585359,1706031038303,-155.03083291,0.00041093,4]
[312585360,1706031038312,-484.85135055,0.00041093,4]
[312585361,1706031038321,-341.5834619,0.00041093,4]
[312585362,1706031038331,-674.20568283,0.00041093,20]
[312585363,1706031038340,-2051.13186643,0.00041093,2]
[312585364,1706031038349,-500.0,0.00041094,30]
[312585365,1706031038358,-500.0,0.00041094,30]
[312585366,1706031038370,-500.0,0.00041094,30]
[312585367,1706031038378,-500.0,0.00041094,30]
[312585368,1706031038387,-500.0,0.00041094,30]
[312585369,1706031038396,-500.0,0.00041094,30]
[312585370,1706031038406,-500.0,0.00041094,30]
[312585371,1706031038415,-500.0,0.00041094,30]
[312585372,1706031038424,-500.0,0.00041094,30]
[312585373,1706031038434,-500.0,0.00041094,30]
[312585374,1706031038443,-500.0,0.00041094,30]
[312585375,1706031038453,-500.0,0.00041094,30]
[312585376,1706031038463,-500.0,0.00041094,30]
[312585377,1706031038473,-500.0,0.00041094,30]
[312585378,1706031038482,-500.0,0.00041094,30]
[312585379,1706031038492,-188.58804871,0.00041094,30]
[312585380,1706031038502,-500.0,0.00041094,30]
[312585381,1706031038511,-500.0,0.00041094,30]
[312585382,1706031038520,-500.0,0.00041094,30]
[312585383,1706031038529,-500.0,0.00041094,30]
[312585384,1706031038538,-500.0,0.00041094,30]
[312585385,1706031038547,-500.0,0.00041094,30]
[312585386,1706031038556,-500.0,0.00041094,30]
[312585387,1706031038566,-500.0,0.00041094,30]
[312585388,1706031038575,-500.0,0.00041094,30]
[312585389,1706031038585,-500.0,0.00041094,30]
[312585390,1706031038594,-500.0,0.00041094,30]
[312585391,1706031038603,-500.0,0.00041094,30]
[312585392,1706031038612,-500.0,0.00041094,30]
[312585393,1706031038621,-500.0,0.00041094,30]
[312585394,1706031038631,-500.0,0.00041094,30]
[312585395,1706031038640,-500.0,0.00041094,30]
[312585396,1706031038649,-500.0,0.00041094,30]
[312585397,1706031038658,-500.0,0.00041094,30]
[312585398,1706031038667,-500.0,0.00041094,30]
[312585399,1706031038676,-500.0,0.00041094,30]
[312585400,1706031038685,-500.0,0.00041094,30]
[312585401,1706031038695,-500.0,0.00041094,30]
[312585402,1706031038713,-183.20131704,0.00041094,30]
[312585403,1706031038725,-500.0,0.00041094,30]
[312585404,1706031038735,-500.0,0.00041094,30]
[312585405,1706031038745,-500.0,0.00041094,30]
[312585406,1706031038756,-500.0,0.00041094,30]
[312585407,1706031038766,-500.0,0.00041094,30]
[312585408,1706031038776,-500.0,0.00041094,30]
[312585409,1706031038785,-408.61508076,0.00041094,30]
[312585410,1706031038794,-500.0,0.00041094,30]
[312585411,1706031038804,-280.53355284,0.00041094,30]
[312585412,1706031038813,-500.0,0.00041095,31]
[312585413,1706031038823,-500.0,0.00041095,31]
[312585414,1706031038832,-500.0,0.00041095,31]
[312585415,1706031038841,-500.0,0.00041095,31]
[312585416,1706031038851,-500.0,0.00041095,31]
[312585417,1706031038860,-179.55560923,0.00041095,31]
[312585418,1706031038869,-406.21873507,0.00041095,31]
[312585419,1706031038879,-500.0,0.00041095,31]
[312585420,1706031038889,-500.0,0.00041095,31]
[312585421,1706031038898,-582.00477286,0.00041095,31]
[312585422,1706031038907,-500.0,0.00041095,31]
[312585423,1706031038917,-500.0,0.00041095,7]
[312585424,1706031038926,-500.0,0.00041095,30]
[312585425,1706031038935,-500.0,0.00041095,30]
[312585426,1706031038945,-500.0,0.00041095,30]
[312585427,1706031038954,-500.0,0.00041095,30]
[312585428,1706031038963,-500.0,0.00041095,30]
[312585429,1706031038972,-500.0,0.00041095,31]
[312585430,1706031038981,-500.0,0.00041095,30]
[312585431,1706031038990,-500.0,0.00041095,31]
[312585432,1706031038999,-500.0,0.00041095,31]
[312585433,1706031039009,-500.0,0.00041095,31]
[312585434,1706031039018,-415.48771235,0.00041095,31]
[312585435,1706031039028,-500.0,0.00041095,31]
[312585436,1706031039037,-500.0,0.00041095,31]
[312585437,1706031039046,-506.86577759,0.00041095,31]
[312585438,1706031039055,-500.0,0.00041095,31]
[312585439,1706031039066,-500.0,0.00041095,31]
[312585440,1706031039075,-500.0,0.00041095,31]
[312585441,1706031039084,-500.0,0.00041095,31]
[312585442,1706031039095,-500.0,0.00041095,31]
[312585443,1706031039104,-500.0,0.00041095,31]
[312585444,1706031039113,-500.0,0.00041095,31]
[312585445,1706031039123,-500.0,0.00041095,31]
[312585446,1706031039132,-220.56229973,0.00041095,31]
[312585447,1706031039141,-502.70465704,0.00041095,31]
[312585448,1706031039150,-505.81672972,0.00041095,31]
[312585449,1706031039160,-1068.44,0.00041095,31]
[312585450,1706031039170,-476.48162068,0.00041095,31]
[312585451,1706031039179,-500.0,0.00041095,31]
[312585452,1706031039189,-502.88006119,0.00041095,31]
[312585453,1706031039198,-500.0,0.00041095,31]
[312585454,1706031039208,-576.93223868,0.00041095,31]
[312585455,1706031039217,-963.44,0.00041095,31]
[312585456,1706031039227,-220.0,0.00041095,2]
[312585457,1706031039236,-424.10716753,0.00041095,31]
[312585458,1706031039245,-222.14482471,0.00041095,31]
[312585459,1706031039255,-195.9324522,0.00041095,31]
[312585460,1706031039264,-500.0,0.00041095,31]
[312585461,1706031039273,-506.35301702,0.00041095,31]
[312585462,1706031039282,-500.0,0.00041095,31]
[312585463,1706031039291,-506.90169867,0.00041095,31]
[312585464,1706031039301,-500.0,0.00041095,31]
[312585465,1706031039311,-500.0,0.00041095,31]
[312585466,1706031039320,-500.0,0.00041095,31]
[312585467,1706031039330,-500.0,0.00041095,31]
[312585468,1706031039339,-500.0,0.00041095,31]
[312585469,1706031039348,-500.0,0.00041095,7]
[312585470,1706031039358,-500.0,0.00041095,31]
[312585471,1706031039368,-533.49,0.00041095,7]
[312585472,1706031039377,-463.74150778,0.00041095,31]
[312585473,1706031039387,-500.0,0.00041095,31]
[312585474,1706031039396,-501.61108588,0.00041095,31]
[312585475,1706031039406,-200.0,0.00041095,31]
[312585476,1706031039416,-500.0,0.00041095,31]
[312585477,1706031039424,-500.0,0.00041095,31]
[312585478,1706031039433,-500.0,0.00041095,31]
[312585479,1706031039443,-500.0,0.00041095,31]
[312585480,1706031039452,-500.0,0.00041095,31]
[312585481,1706031039461,-500.0,0.00041095,31]
[312585482,1706031039471,-500.0,0.00041095,31]
[312585483,1706031039480,-500.0,0.00041095,14]
[312585484,1706031039490,-288.04318377,0.00041095,31]
[312585485,1706031039499,-528.89365383,0.00041095,31]
[312585486,1706031039509,-649.49,0.00041095,31]
[312585487,1706031039519,-511.22981824,0.00041095,31]
[312585488,1706031039529,-500.0,0.00041095,31]
[312585489,1706031039539,-500.0,0.00041095,31]
[312585490,1706031039549,-864.96,0.00041095,31]
[312585491,1706031039559,-340.33515921,0.00041095,31]
[312585492,1706031039569,-500.0,0.00041095,31]
[312585493,1706031039579,-501.37494279,0.00041095,31]
[312585494,1706031039590,-500.0,0.00041095,31]
[312585495,1706031039601,-535.30430394,0.00041095,31]
[312585496,1706031039612,-500.0,0.00041095,31]
[312585497,1706031039623,-500.0,0.00041095,31]
[312585498,1706031039633,-578.13487138,0.00041095,31]
[312585499,1706031039643,-500.0,0.00041095,31]
[312585500,1706031039654,-500.0,0.00041095,31]
[312585501,1706031039664,-501.66952525,0.00041095,31]
[312585502,1706031039804,-500.0,0.00041095,31]
[312585503,1706031039814,-500.0,0.00041095,31]
[312585504,1706031039824,-579.65614316,0.00041095,31]
[312585505,1706031039834,-721.43,0.00041095,31]
[312585506,1706031039845,-500.0,0.00041095,31]
[312585507,1706031039854,-815.09,0.00041095,31]
[312585508,1706031039864,-500.0,0.00041095,31]
[312585509,1706031039874,-428.40851509,0.00041095,2]
[312585510,1706031039883,-500.0,0.00041095,31]
[312585511,1706031039892,-365.12498597,0.00041095,31]
[312585512,1706031039902,-500.0,0.00041095,31]
[312585513,1706031039911,-503.69491098,0.00041095,31]
[312585514,1706031039921,-500.0,0.00041095,31]
[312585515,1706031039930,-514.25521038,0.00041095,31]
[312585516,1706031039939,-157.91206062,0.00041095,31]
[312585517,1706031039949,-500.0,0.00041095,31]
[312585518,1706031039958,-500.0,0.00041095,31]
[312585519,1706031039967,-500.0,0.00041095,31]
[312585520,1706031039976,-500.0,0.00041095,31]
[312585521,1706031039985,-1019.36,0.00041095,31]
[312585522,1706031039994,-572.63667872,0.00041095,31]
[312585523,1706031040004,-472.62646947,0.00041095,31]
[312585524,1706031040014,-500.0,0.00041095,31]
[312585525,1706031040023,-500.0,0.00041095,31]
[312585526,1706031040033,-434.90798383,0.00041095,31]
[312585527,1706031040042,-500.0,0.00041095,31]
[312585528,1706031040051,-500.0,0.00041095,31]
[312585529,1706031040061,-500.0,0.00041095,2]
[312585530,1706031040071,-312.72959311,0.00041095,31]
[312585543,1706031041165,-2784.16,0.00041085,3]
[312585544,1706031041175,-187.27040689,0.00041095,31]
[312585545,1706031041184,-502.05849898,0.00041095,31]
[312585546,1706031041194,-500.0,0.00041095,7]
[312585547,1706031041203,-500.0,0.00041095,31]
[312585548,1706031041212,-500.0,0.00041095,31]
[312585549,1706031041220,-500.0,0.00041095,31]
[312585550,1706031041230,-500.0,0.00041095,31]
[312585551,1706031041240,-500.0,0.00041095,31]
[312585552,1706031041253,-500.0,0.00041095,31]
[312585553,1706031041262,-532.75345216,0.00041095,31]
[312585554,1706031041272,-601.50550858,0.00041095,31]
[312585555,1706031041281,-157.59946011,0.00041095,31]
[312585556,1706031041291,-500.0,0.00041095,31]
[312585557,1706031041300,-500.0,0.00041095,31]
[312585558,1706031041309,-510.42,0.00041095,31]
[312585559,1706031041319,-500.0,0.00041095,31]
[312585560,1706031041328,-500.0,0.00041095,2]
[312585561,1706031041338,-500.0,0.00041095,31]
[312585562,1706031041347,-500.0,0.00041095,31]
[312585563,1706031041357,-500.0,0.00041095,31]
[312585564,1706031041367,-507.35,0.00041095,31]
[312585565,1706031041377,-500.0,0.00041095,31]
[312585566,1706031041386,-500.0,0.00041095,31]
[312585567,1706031041395,-1529.67,0.00041095,31]
[312585568,1706031041404,-500.0,0.00041095,31]
[312585569,1706031041412,-500.0,0.00041095,31]
[312585570,1706031041421,-500.0,0.00041095,31]
[312585571,1706031041431,-1320.71,0.00041095,31]
[312585572,1706031041440,-605.28,0.00041095,31]
[312585573,1706031041449,-578.83134708,0.00041095,31]
[312585574,1706031041459,-258.43110264,0.00041095,31]
[312585575,1706031041469,-500.67314199,0.00041095,31]
[312585576,1706031041478,-500.0,0.00041095,31]
[312585577,1706031041487,-500.0,0.00041095,31]
[312585578,1706031041497,-603.63077966,0.00041095,31]
[312585579,1706031041511,-500.0,0.00041095,31]
[312585580,1706031041521,-500.0,0.00041095,31]
[312585581,1706031041531,-500.0,0.00041095,31]
[312585582,1706031041541,-500.0,0.00041095,31]
[312585583,1706031041550,-500.0,0.00041095,31]
[312585584,1706031041560,-500.0,0.00041095,31]
[312585585,1706031041569,-500.0,0.00041095,31]
[312585586,1706031041579,-500.0,0.00041095,31]
[312585587,1706031041589,-500.0,0.00041095,31]
[312585588,1706031041600,-500.0,0.00041095,31]
[312585589,1706031041610,-506.47952439,0.00041095,31]
[312585590,1706031041619,-168.47470284,0.00041095,31]
[312585649,1706031043365,-0.07138418,0.00041095,31]
[312585650,1706031043376,-331.45391298,0.00041095,31]
[312585651,1706031043386,-500.0,0.00041095,31]
[312585652,1706031043395,-237.78442538,0.00041095,31]
[312585653,1706031043407,-262.21557462,0.00041095,31]
[312585654,1706031043416,-500.0,0.00041095,31]
[312585655,1706031043425,-500.0,0.00041095,31]
[312585656,1706031043435,-500.0,0.00041095,14]
[312585657,1706031043444,-509.92871178,0.00041095,31]
[312585658,1706031043453,-500.0,0.00041095,31]
[312585659,1706031043462,-157.39892513,0.00041095,31]
[312585660,1706031043474,-342.60107487,0.00041095,31]
[312585661,1706031043483,-208.94392513,0.00041095,31]
[312585662,1706031043495,-291.05607487,0.00041095,31]
[312585663,1706031043507,-500.0,0.00041095,31]
[312585664,1706031043516,-500.0,0.00041095,31]
[312585665,1706031043526,-500.0,0.00041095,31]
[312585666,1706031043535,-500.0,0.00041095,31]
[312585667,1706031043544,-151.60289229,0.00041095,31]
[312585668,1706031043553,-500.0,0.00041095,31]
[312585669,1706031043563,-500.0,0.00041095,31]
[312585670,1706031043572,-500.0,0.00041095,31]
[312585671,1706031043581,-299.96622678,0.00041095,31]
[312585672,1706031043592,-200.03377322,0.00041095,31]
[312585673,1706031043601,-500.0,0.00041095,31]
[312585674,1706031043610,-500.0,0.00041095,31]
[312585675,1706031043620,-500.0,0.00041095,31]
[312585676,1706031043629,-500.0,0.00041095,31]
[312585677,1706031043638,-500.0,0.00041095,31]
[312585678,1706031043647,-116.265323,0.00041095,31]
[312585679,1706031043659,-383.734677,0.00041095,31]
[312585680,1706031043668,-500.0,0.00041095,31]
[312585681,1706031043678,-500.0,0.00041095,31]
[312585682,1706031043687,-500.0,0.00041095,31]
[312585683,1706031043697,-220.13525676,0.00041095,31]
[312585684,1706031043706,-502.92884008,0.00041095,31]
[312585685,1706031043715,-500.0,0.00041095,31]
[312585686,1706031043724,-500.0,0.00041095,31]
[312585687,1706031043733,-500.0,0.00041095,31]
[312585688,1706031043742,-500.0,0.00041095,31]
[312585689,1706031043752,-500.0,0.00041095,31]
[312585690,1706031043762,-500.2659361,0.00041095,31]
[312585691,1706031043771,-500.0,0.00041095,31]
[312585692,1706031043781,-1105.16,0.00041095,31]
[312585693,1706031043791,-512.68733436,0.00041095,31]
[312585694,1706031043800,-500.0,0.00041095,31]
[312585695,1706031043810,-1000.0,0.00041095,2]
[312585696,1706031043819,-500.0,0.00041095,31]
[312585697,1706031043828,-500.0,0.00041095,31]
[312585698,1706031043839,-500.0,0.00041095,31]
[312585699,1706031043848,-500.0,0.00041095,31]
[312585700,1706031043858,-500.0,0.00041095,31]
[312585701,1706031043867,-500.0,0.00041095,31]
[312585702,1706031043876,-500.0,0.00041095,31]
[312585703,1706031043886,-500.0,0.00041095,31]
[312585704,1706031043896,-500.0,0.00041095,31]
[312585705,1706031043904,-500.0,0.00041095,31]
[312585706,1706031043913,-500.0,0.00041095,31]
[312585707,1706031043924,-500.0,0.00041095,31]
[312585708,1706031043933,-500.0,0.00041095,31]
[312585709,1706031043942,-511.87856357,0.00041095,31]
[312585710,1706031043951,-500.0,0.00041095,31]
[312585711,1706031043960,-500.0,0.00041095,31]
[312585712,1706031043971,-6001.50722112,0.00041095,7]
[312585713,1706031043981,-495.29967306,0.00041095,31]
[312585809,1706031046310,-4.70032694,0.00041095,31]
[312585811,1706031046319,-500.0,0.00041095,31]
[312585813,1706031046328,-500.0,0.00041095,31]
[312585815,1706031046337,-597.04,0.00041095,31]
[312585817,1706031046345,-500.0,0.00041095,31]
[312585819,1706031046354,-500.0,0.00041095,31]
[312585821,1706031046364,-541.10630553,0.00041095,31]
[312585822,1706031046373,-450.66131107,0.00041095,31]
[312585825,1706031046384,-49.33868893,0.00041095,31]
[312585827,1706031046393,-500.0,0.00041095,31]
[312585829,1706031046402,-500.0,0.00041095,31]
[312585831,1706031046411,-500.0,0.00041095,31]
[312585833,1706031046420,-145.86131107,0.00041095,31]
[312585835,1706031046431,-354.13868893,0.00041095,31]
[312585837,1706031046440,-145.86131107,0.00041095,31]
[312585853,1706031046873,-354.13868893,0.00041095,31]
[312585854,1706031046883,-500.0,0.00041095,31]
[312585855,1706031046892,-500.0,0.00041095,31]
[312585856,1706031046902,-500.0,0.00041095,31]
[312585857,1706031046911,-500.0,0.00041095,31]
[312585858,1706031046920,-500.0,0.00041095,31]
[312585859,1706031046929,-500.0,0.00041095,31]
[312585860,1706031046938,-500.0,0.00041095,31]
[312585861,1706031046947,-500.0,0.00041095,31]
[312585862,1706031046956,-500.0,0.00041095,31]
[312585863,1706031046965,-500.0,0.00041095,31]
[312585864,1706031046975,-556.2,0.00041095,31]
[312585865,1706031046984,-515.50740047,0.00041095,31]
[312585866,1706031046993,-500.0,0.00041095,31]
[312585867,1706031047004,-500.0,0.00041095,31]
[312585868,1706031047013,-500.0,0.00041095,31]
[312585869,1706031047023,-500.0,0.00041095,31]
[312585870,1706031047032,-500.0,0.00041095,31]
[312585871,1706031047042,-1000.0,0.00041095,2]
[312585872,1706031047051,-500.0,0.00041095,31]
[312585873,1706031047060,-500.0,0.00041095,31]
[312585874,1706031047070,-500.0,0.00041095,31]
[312585875,1706031047080,-476.7200108,0.00041095,31]
[312585876,1706031047089,-500.0,0.00041095,31]
[312585877,1706031047101,-500.0,0.00041095,31]
[312585878,1706031047110,-205.92009159,0.00041095,31]
[312585879,1706031047119,-500.0,0.00041095,31]
[312585880,1706031047128,-500.0,0.00041095,31]
[312585881,1706031047138,-502.21799977,0.00041095,31]
[312585882,1706031047147,-500.0,0.00041095,31]
[312585883,1706031047157,-1000.0,0.00041095,2]
[312585884,1706031047166,-500.0,0.00041095,31]
[312585885,1706031047175,-500.0,0.00041095,31]
[312585886,1706031047184,-500.0,0.00041095,31]
[312585887,1706031047193,-500.0,0.00041095,31]
[312585888,1706031047202,-500.0,0.00041095,31]
[312585889,1706031047214,-500.0,0.00041095,31]
[312585890,1706031047223,-500.0,0.00041095,31]
[312585891,1706031047233,-1382.00779096,0.00041095,2]
[312585943,1706031932098,-874.53177436,0.00027609,2]
[312585944,1706031932118,-303.48339143,0.0002761,2]
[312585945,1706031932138,-2039.32722544,0.0002761,2]
[312585946,1706031932158,-351.79761101,0.00027611,2]
[312585947,1706031932179,-199.06136366,0.00027612,2]
[312585948,1706031932199,-1415.52295142,0.00029513,2]
[312585949,1706031932219,-452.81640161,0.00029514,2]
[312585950,1706031932240,-250.0,0.00029532,2]
[312585951,1706031932259,-14217.1271939,0.00031573,2]
[312585952,1706031932280,-24900.0,0.00032398,2]
[312585953,1706031932301,-166.666666,0.00033536,2]
[312585954,1706031932321,-166.666666,0.0003445,2]
[312585955,1706031932342,-154.86062544,0.00034931,2]
[312585956,1706031932363,-1117.11167906,0.00035,7]
[312585957,1706031932383,-592.15140102,0.00035,2]
[312585958,1706031932404,-2086.84800856,0.00035,4]
[312585959,1706031932423,-166.666666,0.00035364,2]
[312585960,1706031932444,-166.666666,0.00035616,2]
[312585961,1706031932462,-10.0107077,0.00035616,2]
[312585963,1706032029104,-154.86062544,0.00031846,5]
[312585964,1706032029126,-166.666666,0.00031847,2]
[312585965,1706032029146,-166.666666,0.00032716,2]
[312585966,1706032029165,-166.666666,0.00033584,2]
[312585967,1706032029185,-166.666666,0.00034452,2]
[312585968,1706032029205,-255.13839606,0.00034931,2]
[312585969,1706032029226,-166.666666,0.0003532,2]
[312585970,1706032029246,-1274.52538808,0.00035605,2]
[312585971,1706032029266,-213.15876796,0.00035616,4]
[312585972,1706032029286,-351.52136299,0.00035616,4]
[312585973,1706032029305,-2453.74929659,0.00035616,2]
[312585974,1706032029327,-1026.65405285,0.00035616,2]
[312585975,1706032029346,-283.29570516,0.00035616,3]
[312585976,1706032029366,-300.0,0.00035616,4]
[312585977,1706032029387,-156.6559583,0.00035616,2]
[312585978,1706032029406,-166.666666,0.00035616,2]
[312585979,1706032029425,-166.666666,0.00035616,2]
[312585980,1706032029445,-166.666666,0.00035616,2]
[312585981,1706032029465,-166.666666,0.00035616,2]
[312585982,1706032029483,-2086.84800856,0.00036187,4]
[312585983,1706032029502,-472.66473648,0.00036187,4]
[312585984,1706032029522,-1117.11167906,0.00036187,7]
[312585985,1706032029542,-407.7511977,0.00036188,4]
[312585986,1706032029564,-592.15140102,0.00036188,2]
[312585987,1706032029583,-166.666666,0.00036189,2]
[312585988,1706032029602,-160.336079,0.00037102,2]
[312585989,1706032029621,-398.2866842,0.00037178,2]
[312585990,1706032029641,-581.57208466,0.0003723,7]
[312585991,1706032029662,-155.61925482,0.00037898,2]
[312585992,1706032029683,-42172.16718274,0.000379,2]
[312585993,1706032029704,-5068.18,0.00037988,3]
[312585994,1706032029723,-4223.48,0.00037988,3]
[312585995,1706032029743,-324.55111307,0.00037998,4]
[312585996,1706032029762,-3660.05483598,0.00037998,2]
[312585997,1706032029782,-154.88935421,0.00037998,4]
[312585998,1706032029801,-265.43031538,0.00037998,4]
[312585999,1706032029822,-36958.2042176,0.00037998,4]
[312586000,1706032029842,-247.50946715,0.00037998,4]
[312586001,1706032029861,-2368.82761163,0.00037998,4]
[312586002,1706032029881,-19863.4413156,0.00037998,4]
[312586003,1706032029901,-156.88647382,0.00037998,4]
[312586004,1706032029920,-155.32332219,0.00037998,4]
[312586005,1706032029939,-206.18032623,0.00037998,4]
[312586006,1706032029959,-792.82095694,0.00037998,4]
[312586012,1706032172096,-154.86062544,0.00034198,5]
[312586013,1706032172117,-592.15140102,0.00036177,2]
[312586014,1706032172138,-752.98797354,0.00036177,7]
[312586079,1706032232244,-154.86062544,0.00034198,5]